[Event "XVII Orsha-2019 Open"]
[Site "Orsha"]
[Date "2019.01.20"]
[Round "4.30"]
[White "Davidov, Alexey"]
[Black "Bialiauski, Artsiom"]
[Result "1-0"]
[ECO "C27"]
[WhiteElo "1688"]
[BlackElo "1914"]
[PlyCount "77"]
[EventDate "2019.01.18"]
[EventType "swiss"]
[EventCountry "BLR"]
[TimeControl "5400+30"]

1. e4 e5 2. Nc3 Nf6 3. Bc4 c6 4. d4 exd4 5. Qxd4 d6 6. Bf4 b5 7. Be2 Be7 8. O-O-O Qb6 9. Bxd6 Qxd4 10. Rxd4 Bxd6 11. Rxd6 b4 12. e5 Nfd7 13. Ne4 Nxe5 14. Nf3 Ned7 15. Rhd1 O-O 16. Bc4 Nb6 17. Bb3 a5 18. Neg5 Ra7 19. Nxf7 a4 20. Nh6+ Kh8 21. Rd8 N8d7 22. Nf7+ Kg8 23. Be6 Rc7 24. N3e5 Rxd8 25. Nxd8+ Kf8 26. Bxd7 Nxd7 27. Ne6+ Ke7 28. Nxc7 Nxe5 29. Re1 Kd6 30. Ne8+ Kd5 31. f4 Ng4 32. h3 Nf2 33. Nxg7 b3 34. axb3 axb3 35. Re2 Ne4 36. cxb3 Ba6 37. Re1 Nc5 38. Re5+ Kd4 39. Nf5+ 1-0

[Event "XVII Orsha-2019 Open"]
[Site "Orsha"]
[Date "2019.01.20"]
[Round "4.31"]
[White "Gabdrakipov, Kirill"]
[Black "Viikmaa, Karmen"]
[Result "0-1"]
[ECO "B33"]
[WhiteElo "1901"]
[BlackElo "1706"]
[PlyCount "78"]
[EventDate "2019.01.18"]
[EventType "swiss"]
[EventCountry "BLR"]
[TimeControl "5400+30"]

1. e4 c5 2. Nf3 Nc6 3. d4 cxd4 4. Nxd4 Qb6 5. Nb3 Nf6 6. Nc3 e6 7. Be3 Qc7 8. Qd2 Bb4 9. f3 d5 10. a3 Bxc3 11. Qxc3 dxe4 12. fxe4 O-O 13. Bd3 Ng4 14. Bc5 Rd8 15. O-O-O b6 16. h3 Nge5 17. Bd4 Nxd3+ 18. Rxd3 f6 19. Rg3 Qf4+ 20. Re3 Bb7 21. Kb1 Rac8 22. Qd3 e5 23. Rf3 Qh6 24. Qc4+ Kh8 25. Be3 Qg6 26. Qa4 Nd4 27. Bxd4 exd4 28. Nxd4 Bxe4 29. Rf2 Qf7 30. Nf3 Rc4 31. Ne5 fxe5 32. Qb3 Qxf2 33. Qxc4 Qd4 34. Qc7 Qd6 35. Qxa7 Rc8 36. Rc1 Qc6 37. Ka1 Bd5 38. Qe7 Qc4 39. b3 Qc3+ 0-1

[Event "XVII Orsha-2019 Open"]
[Site "Orsha"]
[Date "2019.01.20"]
[Round "4.32"]
[White "Dolgopyatov, Evgeniy"]
[Black "Tsesler, Yakau"]
[Result "1/2-1/2"]
[ECO "D03"]
[WhiteElo "1661"]
[BlackElo "1895"]
[PlyCount "51"]
[EventDate "2019.01.18"]
[EventType "swiss"]
[EventCountry "BLR"]
[TimeControl "5400+30"]

1. d4 d5 2. Nf3 Nf6 3. Bg5 e6 4. e3 Nbd7 5. Bd3 Be7 6. Nbd2 b6 7. Ne5 Nxe5 8. dxe5 Nd7 9. Bxe7 Qxe7 10. f4 Bb7 11. Qe2 h6 12. c3 Nc5 13. Nf3 Nxd3+ 14. Qxd3 a6 15. O-O O-O-O 16. b4 f5 17. Rab1 g5 18. Nd4 gxf4 19. exf4 Qd7 20. Rf2 Rhg8 21. a4 Rg6 22. a5 b5 23. Nb3 Qc6 24. Qd4 Rdg8 25. Nc5 h5 26. Rbb2 $11 1/2-1/2

[Event "XVII Orsha-2019 Open"]
[Site "Orsha"]
[Date "2019.01.20"]
[Round "4.33"]
[White "Staravoitava, Hanna"]
[Black "Sokolov, Sergey"]
[Result "1-0"]
[ECO "B10"]
[WhiteElo "1864"]
[BlackElo "1756"]
[PlyCount "61"]
[EventDate "2019.01.18"]
[EventType "swiss"]
[EventCountry "BLR"]
[TimeControl "5400+30"]

1. e4 c6 2. Nf3 d5 3. e5 Bf5 4. Nh4 Bg6 5. Nxg6 hxg6 6. e6 f5 7. d4 Qd6 8. Qe2 Na6 9. g3 Nf6 10. Bf4 Qd8 11. Nd2 Nh5 12. Bg5 Nc7 13. O-O-O Nb5 14. Nf3 Qa5 15. Kb1 Qb4 16. Rd3 Nf6 17. Bd2 Qd6 18. Ng5 Rg8 19. Bf4 Qb4 20. Rb3 Qa5 21. Rxb5 cxb5 22. Qxb5+ Qxb5 23. Bxb5+ Kd8 24. Nf7+ Kc8 25. Re1 a6 26. Re3 b6 27. Rc3+ Kb7 28. Rc7+ Kb8 29. Bc6 Ra7 30. Rd7+ Kc8 31. Rd8# 1-0

[Event "XVII Orsha-2019 Open"]
[Site "Orsha"]
[Date "2019.01.20"]
[Round "4.34"]
[White "Kuleba, Ivan"]
[Black "Kolosovskaya, Olga"]
[Result "1-0"]
[ECO "A11"]
[WhiteElo "1617"]
[BlackElo "1855"]
[PlyCount "51"]
[EventDate "2019.01.18"]
[EventType "swiss"]
[EventCountry "BLR"]
[TimeControl "5400+30"]

1. c4 c6 2. Nf3 d5 3. e3 Nf6 4. Nc3 e6 5. b3 Be7 6. Bb2 O-O 7. Rg1 b6 8. g4 c5 9. g5 Ne4 10. Qc2 Bb7 11. Bd3 f5 12. gxf6 Bxf6 13. Nxe4 dxe4 14. Bxe4 Bxe4 15. Qxe4 Bxb2 16. Rb1 Nd7 17. Ng5 g6 18. Qxe6+ Kg7 19. Rxb2 Rf6 20. Qh3 Nf8 21. Ke2 Rxf2+ 22. Kxf2 Qf6+ 23. Qf3 Qxb2 24. Qxa8 Qxd2+ 25. Kf3 Qxh2 26. Qb7+ 1-0

[Event "XVII Orsha-2019 Open"]
[Site "Orsha"]
[Date "2019.01.20"]
[Round "4.35"]
[White "Ivanov, Igor"]
[Black "Slesareva, Miraslava"]
[Result "1/2-1/2"]
[ECO "B25"]
[WhiteElo "2131"]
[BlackElo "1626"]
[PlyCount "248"]
[EventDate "2019.01.18"]
[EventType "swiss"]
[EventCountry "BLR"]
[TimeControl "5400+30"]

1. Nf3 c5 2. g3 Nc6 3. Bg2 g6 4. O-O Bg7 5. d3 e5 6. e4 Nge7 7. Nc3 d6 8. Nh4 h6 9. Kh1 Bf6 10. Nf3 Bg4 11. h3 Be6 12. a4 Bg7 13. Be3 Nd4 14. Ng1 g5 15. Nce2 f6 16. Ra3 Qb6 17. Qc1 Rc8 18. c3 Nxe2 19. Nxe2 Qc7 20. c4 Nc6 21. f4 Qd7 22. Kh2 b6 23. Nc3 Nd4 24. Qd1 Bf7 25. Ra1 a5 26. Nb5 Nxb5 27. axb5 Rb8 28. Qd2 Be6 29. Rf2 Rf8 30. Qe2 Kd8 31. Bd2 Kc7 32. b3 Ra8 33. Raf1 Rad8 34. Ra1 Ra8 35. Ra2 Ra7 36. Be3 Rfa8 37. Rf1 Kb7 38. Rfa1 Qc8 39. Ra4 Bd7 40. R1a3 Be6 41. Qa2 Qc7 42. Bd2 Kb8 43. Be3 Qe7 44. Qf2 Bc8 45. Ra2 Qc7 46. Qf3 Be6 47. Qh5 Qf7 48. Qd1 Qc7 49. Rf2 Qe7 50. Bf3 Kc7 51. Qa1 Kb8 52. Bg2 Qd7 53. Bd2 Qc7 54. Qd1 Qd7 55. Bc3 Qc7 56. Bf3 Qd7 57. Bg4 Qe7 58. Raa2 Qd7 59. Qf3 Bxg4 60. hxg4 Kb7 61. Rf1 Rh8 62. Kg2 Rf8 63. Rfa1 Rfa8 64. Rh1 Rf8 65. Rf2 Raa8 66. Ra2 Ra7 67. Rha1 Rfa8 68. Bd2 Qe7 69. Qd1 Kb8 70. Ra3 Qc7 71. Qh1 Qe7 72. Qh5 Qd7 73. R1a2 Qe7 74. Kf3 Qd7 75. Qg6 Qe7 76. Bc3 Qd7 77. Rh2 Kb7 78. Qh7 Kb8 79. Qg8+ Qc8 80. Qd5 Qd7 81. Raa2 Kc7 82. Raf2 Rf8 83. Ra2 Rfa8 84. Rh1 Kb8 85. Rha1 Bh8 86. Bd2 Bg7 87. Rh1 Kc7 88. Ra4 Kb8 89. Bc3 Kc7 90. Rh2 Kb8 91. Raa2 Bh8 92. Be1 Bg7 93. Bd2 Bh8 94. Qg8+ Kb7 95. Qg6 Bg7 96. Be1 Kb8 97. Qf5 Qe7 98. Bc3 Kb7 99. Ke3 Kb8 100. Rhf2 Rd7 101. Kd2 Rc7 102. Kc2 Rd7 103. fxg5 fxg5 104. Ra1 Qe8 105. Raf1 Raa7 106. Qf3 Rac7 107. Qe2 Kb7 108. Rf5 Re7 109. Bd2 Red7 110. Ra1 Kb8 111. Ra2 Ra7 112. Qh2 Re7 113. Ra1 Red7 114. Raf1 Re7 115. Qh5 Qxh5 116. gxh5 Kc8 117. Ra1 Kd8 118. Kd1 Ke8 119. Ke2 Rf7 120. Ra2 Rad7 121. Kf3 Ke7 122. Kg4 Ke6 123. Be3 Bf6 124. Raf2 Rc7 1/2-1/2

[Event "XVII Orsha-2019 Open"]
[Site "Orsha"]
[Date "2019.01.20"]
[Round "4.36"]
[White "Karas, Andrei"]
[Black "Loshakov, Dmitry"]
[Result "1-0"]
[ECO "A24"]
[WhiteElo "1422"]
[BlackElo "1852"]
[PlyCount "109"]
[EventDate "2019.01.18"]
[EventType "swiss"]
[EventCountry "BLR"]
[TimeControl "5400+30"]

1. c4 Nf6 2. g3 g6 3. Bg2 Bg7 4. Nc3 O-O 5. d3 d6 6. e4 e5 7. Nge2 Be6 8. O-O Qd7 9. Bg5 h6 10. Bd2 c6 11. Qc2 Bh3 12. Rab1 Bxg2 13. Kxg2 d5 14. b3 Na6 15. a3 Rad8 16. Rfd1 b6 17. Bc1 Nc5 18. exd5 cxd5 19. d4 exd4 20. Nxd4 dxc4 21. bxc4 Qb7+ 22. Kg1 Ng4 23. Be3 Rfe8 24. Nd5 Ne4 25. Ne2 Nef6 26. Nec3 Ne5 27. Nxf6+ Bxf6 28. Nd5 Bg7 29. Bf4 Nf3+ 30. Kg2 Nd4 31. Qc3 Ne2 32. Qf3 Kh8 33. Be3 Nc3 34. Nxc3 Qxf3+ 35. Kxf3 Bxc3 36. Bxh6 Bd4 37. Bg5 f6 38. Rxd4 fxg5 39. Rbd1 Rf8+ 40. Kg4 Rxd4+ 41. Rxd4 Rf5 42. Rd5 Rxd5 43. cxd5 Kg7 44. Kxg5 b5 45. Kf4 Kf6 46. Ke4 a5 47. Kd4 b4 48. axb4 axb4 49. Kc4 Ke5 50. d6 Kxd6 51. Kxb4 Kd5 52. f4 Ke4 53. Kc4 Kf3 54. Kd4 Kg2 55. g4 1-0

[Event "XVII Orsha-2019 Open"]
[Site "Orsha"]
[Date "2019.01.20"]
[Round "4.37"]
[White "Platnitski, Siarhei"]
[Black "Poghosyan, Sarmen"]
[Result "0-1"]
[ECO "A34"]
[WhiteElo "1383"]
[BlackElo "1361"]
[PlyCount "74"]
[EventDate "2019.01.18"]
[EventType "swiss"]
[EventCountry "BLR"]
[TimeControl "5400+30"]

1. c4 e6 2. g3 d5 3. Bg2 Nf6 4. Nf3 c5 5. cxd5 Nxd5 6. Nc3 Be7 7. O-O O-O 8. d3 Nc6 9. Bd2 Bf6 10. Rc1 b6 11. Qb3 Na5 12. Qc2 Nb4 13. Qb1 Bb7 14. Rfd1 Nac6 15. Ne4 Nd5 16. Nxf6+ Qxf6 17. b3 Nd4 18. Nxd4 cxd4 19. e4 dxe3 20. fxe3 Rac8 21. Rxc8 Rxc8 22. Rc1 Rd8 23. Rc4 h6 24. e4 b5 25. Rc1 Qd4+ 26. Kh1 Ne3 27. Bxe3 Qxe3 28. Rd1 b4 29. Qc2 Rc8 30. Qb1 Qd4 31. Rf1 Rc3 32. Rd1 Ba6 33. Bf1 Qf2 34. Rc1 Qf3+ 35. Bg2 Qxd3 36. Qb2 Qe2 37. Qxe2 Rxc1+ 0-1

[Event "XVII Orsha-2019 Open"]
[Site "Orsha"]
[Date "2019.01.20"]
[Round "4.38"]
[White "Shaban, Aliaksandra"]
[Black "Gusenkova, Karina"]
[Result "1/2-1/2"]
[ECO "C44"]
[WhiteElo "1482"]
[BlackElo "1642"]
[PlyCount "139"]
[EventDate "2019.01.18"]
[EventType "swiss"]
[EventCountry "BLR"]
[TimeControl "5400+30"]

1. e4 e5 2. Nf3 Nf6 3. d3 Nc6 4. g3 Bc5 5. Bg2 O-O 6. O-O d5 7. exd5 Nxd5 8. Re1 f6 9. a3 a5 10. Nfd2 Be6 11. Ne4 Ba7 12. Nbc3 Nxc3 13. Nxc3 Qd7 14. Ne4 Bg4 15. Bf3 Bxf3 16. Qxf3 Nd4 17. Qd1 f5 18. Nd2 f4 19. c3 fxg3 20. hxg3 Nc2 21. Qxc2 Bxf2+ 22. Kg2 Bxe1 23. Ne4 Qf5 24. Qe2 Rad8 25. Bg5 Rd7 26. Rxe1 h6 27. Bc1 Rdf7 28. Be3 Qg6 29. Bc5 Rd8 30. Rf1 Rfd7 31. Rf3 b6 32. Bg1 c5 33. Nf2 Qc6 34. Qxe5 Rf7 35. Qe4 Qxe4 36. Nxe4 Rxf3 37. Kxf3 Rxd3+ 38. Ke2 Rd7 39. Be3 Kf7 40. Nd2 Ke6 41. Nc4 Rb7 42. Bf4 g5 43. Be3 Kd5 44. Kd3 a4 45. Nd2 b5 46. Nf3 Rf7 47. Ke2 Re7 48. Nd2 Re6 49. Kd3 Re8 50. Nf3 Rf8 51. Nd2 Re8 52. g4 Rh8 53. Nf3 Rf8 54. Ke2 Re8 55. Nd2 Rh8 56. Kf3 Rf8+ 57. Ke2 Rh8 58. Nf1 h5 59. gxh5 Rxh5 60. Kf3 Rh3+ 61. Kg4 Rh1 62. Nd2 Ra1 63. Kxg5 Ra2 64. Kf4 Rxb2 65. Ne4 Rh2 66. Nxc5 Rh4+ 67. Kf3 Rh3+ 68. Kf4 Rxe3 69. Kxe3 Kxc5 70. Kd2 1/2-1/2

[Event "XVII Orsha-2019 Open"]
[Site "Orsha"]
[Date "2019.01.20"]
[Round "4.40"]
[White "Masterova, Daria"]
[Black "Borodulin, Pavel"]
[Result "1-0"]
[ECO "B72"]
[WhiteElo "1500"]
[BlackElo "1481"]
[PlyCount "87"]
[EventDate "2019.01.18"]
[EventType "swiss"]
[EventCountry "BLR"]
[TimeControl "5400+30"]

1. e4 c5 2. Nf3 d6 3. Nc3 Nc6 4. Bc4 Nf6 5. d4 cxd4 6. Nxd4 g6 7. Be3 Bg7 8. O-O O-O 9. Qd2 Nxe4 10. Bxf7+ Rxf7 11. Nxe4 Qb6 12. Nb3 Qb4 13. Ng5 Rf8 14. Qd5+ e6 15. Qd3 Bxb2 16. Rad1 Be5 17. Bd4 Bxd4 18. Nxd4 Nxd4 19. Qxd4 Qxd4 20. Rxd4 h6 21. Nf3 d5 22. Re1 Bd7 23. c4 Rf5 24. Ne5 Bc6 25. Nxc6 bxc6 26. Rxe6 Raf8 27. f3 Kf7 28. Rxc6 dxc4 29. Rdxc4 Ra5 30. Rf4+ Kg7 31. Rxf8 Kxf8 32. Rxg6 h5 33. Kf2 Rxa2+ 34. Kg3 Kf7 35. Rg5 a5 36. Rxh5 a4 37. Ra5 a3 38. h4 Ra1 39. Kf4 a2 40. g3 Kf6 41. h5 Kg7 42. g4 Kh6 43. Ra6+ Kg7 44. Kg5 1-0

[Event "XVII Orsha-2019 Open"]
[Site "Orsha"]
[Date "2019.01.20"]
[Round "5"]
[White "Lazavik, Denis"]
[Black "Papunidi, Matvey"]
[Result "1/2-1/2"]
[ECO "E11"]
[WhiteElo "2296"]
[BlackElo "2113"]
[Annotator "ChessBase"]
[PlyCount "38"]
[EventDate "2019.01.18"]
[EventType "swiss"]
[EventCountry "BLR"]
[SourceTitle "playchess.com"]
[Source "ChessBase"]
[SourceQuality "1"]
[TimeControl "5400+30"]

1. d4 {[%emt 0:00:00]} Nf6 {[%emt 0:00:07]} 2. c4 {[%emt 0:00:13]} e6 {[%emt 0:00:14]} 3. Nf3 {[%emt 0:00:36]} Bb4+ {[%emt 0:00:08]} 4. Bd2 {[%emt 0:00:27]} c5 {[%emt 0:00:32]} 5. Bxb4 {[%emt 0:01:33]} cxb4 {[%emt 0:01:46]} 6. g3 {[%emt 0:00:30]} O-O {[%emt 0:01:27]} 7. Bg2 {[%emt 0:00:21]} d6 {[%emt 0:01:17]} 8. O-O {[%emt 0:00:42]} Nc6 {[%emt 0:00:15]} 9. Qd3 {[%emt 0:09:07]} e5 {[%emt 0:06:06]} 10. Nbd2 {[%emt 0:01:27]} Qe7 {[%emt 0:04:18]} 11. d5 {[%emt 0:11:53]} Nb8 {[%emt 0:05:37]} 12. e4 {[%emt 0:00:25]} Na6 {[%emt 0:01:12]} 13. a3 {[%emt 0:01:46]} Nd7 {[%emt 0:10:53]} 14. Nb3 {[%emt 0:06:23]} b6 {[%emt 0:04:30]} 15. Qd2 {[%emt 0:02:19]} Ndc5 {[%emt 0:01:48]} 16. Nxc5 {[%emt 0:00:14]} bxc5 {[%emt 0:00:45]} 17. Ne1 {[%emt 0:00:47]} Rb8 {[%emt 0:09:31]} 18. Nc2 {[%emt 0:00:25]} bxa3 {[%emt 0:07:03]} 19. bxa3 {[%emt 0:00:16]} Qc7 {[%emt 0:11:25]} 1/2-1/2

[Event "XVII Orsha-2019 Open"]
[Site "Orsha"]
[Date "2019.01.20"]
[Round "5"]
[White "Siniauski, Artsiom"]
[Black "Mihajlovskij, Sergei"]
[Result "1-0"]
[ECO "C15"]
[WhiteElo "2182"]
[BlackElo "2406"]
[Annotator "ChessBase"]
[PlyCount "79"]
[EventDate "2019.01.18"]
[EventType "swiss"]
[EventCountry "BLR"]
[SourceTitle "playchess.com"]
[Source "ChessBase"]
[SourceQuality "1"]
[TimeControl "5400+30"]

1. e4 {[%emt 0:00:00]} e6 {[%emt 0:00:16]} 2. d4 {[%emt 0:00:00]} d5 {[%emt 0:00:02]} 3. Nc3 {[%emt 0:00:02]} Bb4 {[%emt 0:00:05]} 4. exd5 {[%emt 0:00:41]} exd5 {[%emt 0:00:06]} 5. Bd3 {[%emt 0:00:10]} Ne7 {[%emt 0:01:36]} 6. Nge2 {[%emt 0:00:29]} Bf5 {[%emt 0:01:43]} 7. Bf4 {[%emt 0:00:45]} O-O {[%emt 0:02:35]} 8. O-O {[%emt 0:02:38]} c6 {[%emt 0:01:38]} 9. Ng3 {[%emt 0:01:10]} Bg6 {[%emt 0:01:21]} 10. Nce2 {[%emt 0:03:24]} Re8 {[%emt 0:04:28]} 11. c3 {[%emt 0:05:55]} Ba5 {[%emt 0:03:23]} 12. h4 {[%emt 0:00:59]} Nd7 {[%emt 0:01:39]} 13. h5 {[%emt 0:00:32]} Bxd3 {[%emt 0:00:09]} 14. Qxd3 {[%emt 0:00:05]} Nf8 {[%emt 0:03:24]} 15. h6 {[%emt 0:11:29]} g6 {[%emt 0:02:09]} 16. Qf3 {[%emt 0:02:51]} Nc8 {[%emt 0:09:52]} 17. Rae1 {[%emt 0:16:32]} Nd6 {[%emt 0:04:23]} 18. Nc1 {[%emt 0:11:07]} Ne6 {[%emt 0:06:11]} 19. Be5 {[%emt 0:02:49]} f5 {[%emt 0:03:05]} 20. Bxd6 {[%emt 0:14:06]} Qxd6 {[%emt 0:00:08]} 21. Re5 {[%emt 0:00:17]} Ng5 {[%emt 0:03:19]} 22. Qe3 {[%emt 0:00:40]} Rxe5 {[%emt 0:00:52]} 23. dxe5 {[%emt 0:01:08]} Qe7 {[%emt 0:00:07]} 24. Nb3 {[%emt 0:02:09]} Bb6 {[%emt 0:01:23]} 25. Nd4 {[%emt 0:00:17]} Ne6 {[%emt 0:01:55]} 26. Qd2 {[%emt 0:00:31]} Bxd4 {[%emt 0:05:00]} 27. cxd4 {[%emt 0:00:08]} f4 {[%emt 0:00:02]} 28. Ne2 {[%emt 0:00:41]} f3 {[%emt 0:01:01]} 29. gxf3 {[%emt 0:02:16]} Rf8 {[%emt 0:00:18]} 30. Kg2 {[%emt 0:00:59]} Rf5 {[%emt 0:05:01]} 31. Rh1 {[%emt 0:01:22]} Qf7 {[%emt 0:03:06]} 32. Qe3 {[%emt 0:01:50]} Rg5+ {[%emt 0:07:00]} 33. Ng3 {[%emt 0:00:50]} Qf5 {[%emt 0:00:46]} 34. Rh4 {[%emt 0:00:35]} Qc2 {[%emt 0:04:24]} 35. Rf4 {[%emt 0:06:37]} Rf5 {[%emt 0:04:38]} 36. Nxf5 {[%emt 0:01:20]} gxf5 {[%emt 0:00:02]} 37. Rh4 {[%emt 0:00:05]} Kf7 {[%emt 0:00:14]} 38. Qa3 {[%emt 0:00:32]} Qc1 {[%emt 0:01:34]} 39. Qe3 {[%emt 0:00:22]} Qxb2 {[%emt 0:00:43]} 40. Qd3 {[%emt 0:00:14]} 1-0

[Event "XVII Orsha-2019 Open"]
[Site "Orsha"]
[Date "2019.01.20"]
[Round "5"]
[White "Silich, Yahor"]
[Black "Aliakbarov, Anar"]
[Result "1/2-1/2"]
[ECO "B31"]
[WhiteElo "2116"]
[BlackElo "2282"]
[Annotator "ChessBase"]
[PlyCount "71"]
[EventDate "2019.01.18"]
[EventType "swiss"]
[EventCountry "BLR"]
[SourceTitle "playchess.com"]
[Source "ChessBase"]
[SourceQuality "1"]
[TimeControl "5400+30"]

1. e4 {[%emt 0:00:00]} c5 {[%emt 0:00:57]} 2. Nf3 {[%emt 0:00:02]} Nc6 {[%emt 0:01:27]} 3. Bb5 {[%emt 0:00:47]} g6 {[%emt 0:00:06]} 4. O-O {[%emt 0:00:46]} Bg7 {[%emt 0:00:12]} 5. Re1 {[%emt 0:00:31]} e5 {[%emt 0:00:37]} 6. Bxc6 {[%emt 0:01:42]} dxc6 {[%emt 0:00:09]} 7. d3 {[%emt 0:00:08]} Qc7 {[%emt 0:01:39]} 8. Nbd2 {[%emt 0:00:46]} Nf6 {[%emt 0:00:28]} 9. Nc4 {[%emt 0:00:24]} Nd7 {[%emt 0:00:18]} 10. a3 {[%emt 0:00:11]} a5 {[%emt 0:02:35]} 11. Bd2 {[%emt 0:06:03]} a4 {[%emt 0:02:06]} 12. b4 {[%emt 0:04:27]} axb3 {[%emt 0:01:49]} 13. cxb3 {[%emt 0:00:17]} O-O {[%emt 0:00:19]} 14. Bc3 {[%emt 0:01:28]} Rd8 {[%emt 0:01:34]} 15. Qc2 {[%emt 0:00:49]} b5 {[%emt 0:02:55]} 16. Ne3 {[%emt 0:01:09]} Nf8 {[%emt 0:00:46]} 17. a4 {[%emt 0:01:08]} Ba6 {[%emt 0:14:26]} 18. axb5 {[%emt 0:05:07]} Bxb5 {[%emt 0:00:08]} 19. Rxa8 {[%emt 0:00:17]} Rxa8 {[%emt 0:00:05]} 20. Nd2 {[%emt 0:00:13]} Ne6 {[%emt 0:00:57]} 21. Ndc4 {[%emt 0:02:58]} Nd4 {[%emt 0:01:48]} 22. Qb2 {[%emt 0:10:39]} f6 {[%emt 0:12:40]} 23. h3 {[%emt 0:02:43]} Qb8 {[%emt 0:01:44]} 24. Rb1 {[%emt 0:07:41]} Bf8 {[%emt 0:01:10]} 25. Kf1 {[%emt 0:08:16]} Ra7 {[%emt 0:01:56]} 26. Ra1 {[%emt 0:06:23]} Rxa1+ {[%emt 0:01:34]} 27. Qxa1 {[%emt 0:00:12]} Nxb3 {[%emt 0:00:41]} 28. Qa2 {[%emt 0:00:25]} Bxc4 {[%emt 0:01:23]} 29. Nxc4 {[%emt 0:00:24]} Nc1 {[%emt 0:06:26]} 30. Qc2 {[%emt 0:01:27]} Nb3 {[%emt 0:02:02]} 31. Qa2 {[%emt 0:02:44]} Qb5 32. Ke1 Kh8 33. Qa8 Kg7 34. Qa2 Kh8 35. Kf1 Kg8 36. Bd4 1/2-1/2

[Event "XVII Orsha-2019 Open"]
[Site "Orsha"]
[Date "2019.01.20"]
[Round "5"]
[White "Strybuk, Artsiom I"]
[Black "Vorobjov, Pavel"]
[Result "1/2-1/2"]
[ECO "E92"]
[WhiteElo "2110"]
[BlackElo "2296"]
[Annotator "ChessBase"]
[PlyCount "73"]
[EventDate "2019.01.18"]
[EventType "swiss"]
[EventCountry "BLR"]
[SourceTitle "playchess.com"]
[Source "ChessBase"]
[SourceQuality "1"]
[TimeControl "5400+30"]

1. d4 {[%emt 0:00:25]} Nf6 {[%emt 0:00:00]} 2. c4 {[%emt 0:00:06]} g6 {[%emt 0:00:00]} 3. Nc3 {[%emt 0:01:08]} Bg7 {[%emt 0:00:00]} 4. e4 {[%emt 0:01:14]} d6 {[%emt 0:00:29]} 5. Nf3 {[%emt 0:01:04]} O-O {[%emt 0:00:16]} 6. Be2 {[%emt 0:00:19]} e5 {[%emt 0:00:29]} 7. Bg5 {[%emt 0:00:53]} c6 {[%emt 0:05:34]} 8. O-O {[%emt 0:07:58]} Nbd7 {[%emt 0:02:30]} 9. Qd2 {[%emt 0:06:31]} Re8 {[%emt 0:00:40]} 10. Rad1 {[%emt 0:02:55]} Qb6 {[%emt 0:03:40]} 11. d5 {[%emt 0:08:29]} cxd5 {[%emt 0:02:26]} 12. cxd5 {[%emt 0:05:35]} Nc5 {[%emt 0:02:23]} 13. Bxf6 {[%emt 0:03:51]} Bxf6 {[%emt 0:00:23]} 14. Qc2 {[%emt 0:00:31]} Bd7 {[%emt 0:01:41]} 15. Nd2 {[%emt 0:01:58]} Rac8 {[%emt 0:06:32]} 16. Nc4 {[%emt 0:07:50]} Qc7 {[%emt 0:00:39]} 17. a4 {[%emt 0:01:45]} Nxa4 {[%emt 0:07:26]} 18. Nxa4 {[%emt 0:00:28]} b5 {[%emt 0:00:15]} 19. b3 {[%emt 0:00:19]} bxa4 {[%emt 0:01:43]} 20. bxa4 {[%emt 0:00:11]} Qc5 {[%emt 0:03:00]} 21. Rb1 {[%emt 0:02:49]} Rc7 {[%emt 0:02:20]} 22. Qb3 {[%emt 0:05:15]} Be7 {[%emt 0:06:13]} 23. Qb4 {[%emt 0:05:40]} Qd4 {[%emt 0:03:14]} 24. Na5 {[%emt 0:02:19]} Bxa4 {[%emt 0:01:26]} 25. Bb5 {[%emt 0:08:23]} Bxb5 {[%emt 0:10:10]} 26. Qxb5 {[%emt 0:00:11]} Rec8 {[%emt 0:01:05]} 27. Rb4 {[%emt 0:01:52]} Qd2 {[%emt 0:03:16]} 28. Nc6 {[%emt 0:01:03]} f5 {[%emt 0:02:00]} 29. exf5 {[%emt 0:07:39]} gxf5 {[%emt 0:00:39]} 30. Rb2 {[%emt 0:00:07]} Qh6 {[%emt 0:02:18]} 31. Ra2 {[%emt 0:02:06]} Bf8 {[%emt 0:01:36]} 32. Rfa1 {[%emt 0:02:09]} Rg7 {[%emt 0:04:46]} 33. Rxa7 {[%emt 0:07:55]} Rxa7 {[%emt 0:00:10]} 34. Rxa7 {[%emt 0:00:13]} Qc1+ {[%emt 0:00:20]} 35. Qf1 {[%emt 0:00:02]} Qd2 {[%emt 0:00:19]} 36. g3 {[%emt 0:05:07]} Qxd5 37. Qh3 1/2-1/2

[Event "XVII Orsha-2019 Open"]
[Site "Orsha"]
[Date "2019.01.20"]
[Round "5"]
[White "Kirilin, Dmitrij"]
[Black "Cherepov, Alexej"]
[Result "1/2-1/2"]
[ECO "D34"]
[WhiteElo "2074"]
[BlackElo "2226"]
[Annotator "ChessBase"]
[PlyCount "73"]
[EventDate "2019.01.18"]
[EventType "swiss"]
[EventCountry "BLR"]
[SourceTitle "playchess.com"]
[Source "ChessBase"]
[SourceQuality "1"]
[TimeControl "5400+30"]

1. c4 {[%emt 0:00:00]} c5 {[%emt 0:00:22]} 2. Nc3 {[%emt 0:00:26]} Nf6 {[%emt 0:00:49]} 3. g3 {[%emt 0:00:15]} Nc6 {[%emt 0:00:40]} 4. Bg2 {[%emt 0:00:09]} e6 {[%emt 0:00:06]} 5. Nf3 {[%emt 0:00:23]} Be7 {[%emt 0:03:07]} 6. O-O {[%emt 0:01:09]} O-O {[%emt 0:00:04]} 7. d4 {[%emt 0:00:15]} d5 {[%emt 0:01:29]} 8. cxd5 {[%emt 0:00:10]} exd5 {[%emt 0:00:03]} 9. dxc5 {[%emt 0:00:12]} Bxc5 {[%emt 0:00:04]} 10. Bg5 {[%emt 0:00:06]} d4 {[%emt 0:00:33]} 11. Bxf6 {[%emt 0:00:12]} Qxf6 {[%emt 0:00:04]} 12. Nd5 {[%emt 0:00:05]} Qd8 {[%emt 0:01:01]} 13. Nf4 {[%emt 0:00:06]} Re8 {[%emt 0:01:46]} 14. Rc1 {[%emt 0:03:41]} Bb6 {[%emt 0:04:30]} 15. a3 {[%emt 0:06:14]} Bf5 {[%emt 0:04:24]} 16. b4 {[%emt 0:04:57]} Be4 {[%emt 0:07:46]} 17. Nd2 {[%emt 0:11:45]} Bxg2 {[%emt 0:02:45]} 18. Kxg2 {[%emt 0:00:48]} a6 {[%emt 0:00:20]} 19. Nb3 {[%emt 0:01:59]} Qd6 {[%emt 0:05:16]} 20. Kg1 {[%emt 0:09:20]} Rad8 {[%emt 0:03:13]} 21. Qd2 {[%emt 0:11:23]} Qh6 {[%emt 0:05:41]} 22. Rfd1 {[%emt 0:04:40]} d3 {[%emt 0:17:26]} 23. Nxd3 {[%emt 0:15:03]} Bxf2+ {[%emt 0:04:23]} 24. Kxf2 {[%emt 0:00:01]} Qxh2+ {[%emt 0:00:02]} 25. Kf1 {[%emt 0:00:02]} Qh3+ {[%emt 0:08:20]} 26. Kf2 {[%emt 0:01:19]} Ne5 {[%emt 0:16:51]} 27. Qf4 {[%emt 0:06:08]} Qh2+ {[%emt 0:11:37]} 28. Kf1 {[%emt 0:00:02]} Qh1+ {[%emt 0:00:24]} 29. Kf2 {[%emt 0:00:03]} Qh2+ {[%emt 0:00:32]} 30. Kf1 {[%emt 0:00:01]} Nxd3 {[%emt 0:00:44]} 31. exd3 {[%emt 0:00:01]} Re2 {[%emt 0:00:26]} 32. Qf3 {[%emt 0:00:18]} Rde8 {[%emt 0:00:01]} 33. Nd4 {[%emt 0:05:53]} Qh3+ {[%emt 0:00:19]} 34. Kg1 {[%emt 0:00:00]} R2e3 {[%emt 0:00:58]} 35. Qh1 {[%emt 0:07:08]} Qxg3+ {[%emt 0:00:22]} 36. Qg2 {[%emt 0:00:01]} Qf4 {[%emt 0:00:01]} 37. Ne2 {[%emt 0:00:56]} 1/2-1/2